bitfinex-derivatives/quotes_ETHF0:USTF0_20241105
["timestamp","ask_amount","ask_price","bid_price","bid_amount"]
[1730813570194,0.28659,2443.4,2443.2,0.7215]
[1730813570387,3.2078,2443.6,2443.2,0.4349]
[1730813570690,3.2078,2443.6,2443.4,0.28657]
[1730813570691,0.28656,2443.6,2443.4,0.28657]
[1730813571187,0.28656,2443.6,2443.5,0.28657]
[1730813571388,0.28658,2443.5,2443.4,0.28658]
[1730813571686,0.4243,2443.8,2443.3,2.55796791]
[1730813571892,0.71084,2443.8,2443.7,0.28655]
[1730813572287,41.51083,2443.8,2443.7,0.28655]
[1730813573290,0.28655,2443.7,2443.6,0.28655]
[1730813573484,41.51084,2443.8,2443.7,0.28655]
[1730813573784,41.2243,2443.8,2443.3,3.2078]
[1730813573984,0.28656,2443.6,2443.5,0.28656]
[1730813574589,0.28656,2443.6,2443.4,0.28658]
[1730813574783,0.28656,2443.6,2443.3,3.2078]
[1730813574986,0.28656,2443.7,2443.5,0.28656]
[1730813575186,41.2243,2443.8,2443.5,0.28656]
[1730813575588,41.2243,2443.8,2443.3,3.2078]
[1730813575589,0.28655,2443.7,2443.3,3.2078]
[1730813575886,0.28655,2443.7,2443.5,0.28656]
[1730813576286,0.28655,2443.7,2443.3,3.2078]
[1730813576485,41.51084,2443.8,2443.6,0.28656]
[1730813576692,0.71084,2443.8,2443.3,3.2078]
[1730813576888,3.2078,2444.2,2443.5,2.55796791]
[1730813577088,3.2078,2444.2,2443.9,0.28652]
[1730813577089,0.28651,2444.1,2443.9,0.28652]
[1730813577288,0.28653,2443.9,2443.7,0.28654]
[1730813577494,0.8881,2444.0,2443.7,0.28654]
[1730813577689,0.28653,2443.8,2443.6,3.95665]
[1730813578193,0.4411,2443.9,2443.6,3.6701]
[1730813578393,0.4411,2443.9,2443.8,0.28653]
[1730813578600,3.2078,2444.2,2443.6,3.6701]
[1730813578893,0.28651,2444.0,2443.8,0.28652]
[1730813579196,3.2078,2444.2,2443.6,3.6701]
[1730813579197,0.28651,2444.1,2443.6,3.6701]
[1730813579397,0.28651,2444.1,2444.0,0.28651]
[1730813579793,3.2078,2444.2,2443.6,3.6701]
[1730813579998,3.2078,2444.2,2443.8,0.28653]
[1730813579999,0.28653,2443.9,2443.8,0.28653]
[1730813580296,0.28651,2444.1,2443.9,0.28651]
[1730813580497,0.28651,2444.1,2444.0,0.28651]
[1730813580699,3.2078,2444.2,2443.6,3.6701]
[1730813580700,0.28652,2444.0,2443.6,3.6701]
[1730813580889,0.28652,2444.0,2443.8,0.28653]
[1730813581395,3.2078,2444.2,2443.8,0.28653]
[1730813581599,0.28652,2443.9,2443.8,0.28653]
[1730813581999,0.28651,2444.0,2443.9,0.28652]
[1730813582295,3.49429,2444.2,2444.1,0.2865]
[1730813582894,3.4943,2444.2,2444.1,0.2865]
[1730813583401,3.2078,2444.2,2443.8,0.4421]
[1730813583698,0.28654,2443.8,2443.7,0.28654]
[1730813583898,0.28655,2443.7,2443.6,3.95665]
[1730813584102,0.28655,2443.7,2443.6,3.6701]
[1730813584103,0.72645,2443.7,2443.6,3.6701]
[1730813584305,0.72645,2443.7,2443.6,3.2078]
[1730813584509,0.4399,2443.7,2443.5,0.28656]
[1730813584805,0.4399,2443.7,2443.3,0.4229]
[1730813585396,0.4399,2443.7,2443.2,0.2866]
[1730813585599,0.28659,2443.4,2443.2,0.2866]
[1730813585789,5.76576791,2443.3,2442.8,3.2078]
[1730813585993,5.76576791,2443.0,2442.3,1.3398763]
[1730813586192,3.20114466,2442.5,2442.1,0.4229]
[1730813586392,50.72103452,2442.4,2442.3,0.28671]
[1730813586593,9.92103452,2442.4,2442.3,3.49451]
[1730813586794,2.70939164,2442.4,2442.3,8.1261047]
[1730813587200,2.70939164,2442.4,2442.3,8.63211356]
[1730813587699,2.70939164,2442.4,2442.3,8.63205777]
[1730813588294,2.70939164,2442.4,2442.3,8.0948534]
[1730813588497,2.70939164,2442.4,2442.3,8.63195022]
[1730813590705,2.70939164,2442.4,2442.3,4.03160682]
[1730813591105,2.70939164,2442.4,2442.3,3.49451]
[1730813591409,2.68788743,2442.4,2442.3,7.58891]
[1730813591701,2.68788743,2442.4,2442.3,4.38111]
[1730813591902,2.68788743,2442.4,2442.3,7.58891]
[1730813592110,2.68788743,2442.4,2442.3,3.49451]
[1730813592398,2.68788743,2442.4,2442.3,0.28671]
[1730813592598,2.68788743,2442.4,2442.3,3.49451]
[1730813593499,2.68788743,2442.4,2442.3,7.58891]
[1730813594602,2.86978153,2442.4,2442.3,7.58891]
[1730813595004,5.3527701,2442.4,2442.3,3.49451]
[1730813595303,5.3527701,2442.4,2442.3,7.58891]
[1730813595304,2.68788743,2442.4,2442.3,7.58891]
[1730813595507,2.86951292,2442.4,2442.3,7.58891]
[1730813595805,2.6849736,2442.4,2442.3,7.58891]
[1730813596202,2.6849736,2442.4,2442.3,7.3022]
[1730813596400,2.48008772,2442.4,2442.3,7.58891]
[1730813596595,2.6849736,2442.4,2442.3,7.58891]
[1730813596897,2.48008772,2442.4,2442.3,7.58891]
[1730813597101,2.6849736,2442.4,2442.3,7.58891]
[1730813597399,2.48008772,2442.4,2442.3,7.58891]
[1730813597602,2.6849736,2442.4,2442.3,7.58891]
[1730813598006,2.48008772,2442.4,2442.3,7.58891]
[1730813598305,2.6849736,2442.4,2442.3,7.58891]
[1730813598496,2.48008772,2442.4,2442.3,7.58891]
[1730813598701,2.6849736,2442.4,2442.3,7.58891]
[1730813599004,2.6849736,2442.4,2442.3,3.49451]
[1730813599204,2.48008772,2442.4,2442.3,7.58891]
[1730813599505,2.6849736,2442.4,2442.3,7.58891]
[1730813599803,2.48008772,2442.4,2442.3,7.58891]
[1730813600009,2.6849736,2442.4,2442.3,7.58891]
[1730813600409,2.48008772,2442.4,2442.3,4.38111]
[1730813600605,2.48008772,2442.4,2442.3,7.58891]
[1730813600911,2.69065881,2442.4,2442.3,7.58891]
[1730813601107,3.20114466,2442.6,2442.3,3.2078]
[1730813601308,0.2867,2442.4,2442.3,3.2078]
[1730813601708,1.1685,2442.4,2442.3,3.2078]
[1730813604108,1.1685,2442.4,2441.9,3.2078]
[1730813604109,0.28675,2442.0,2441.9,3.2078]
[1730813604506,0.28675,2442.0,2441.4,0.4658]
[1730813604707,1.3672,2441.9,2441.4,0.4658]
[1730813605015,0.28678,2441.7,2441.5,0.2868]
[1730813605315,1.3672,2441.9,2441.5,0.2868]
[1730813605502,1.3672,2441.9,2441.6,0.28679]
[1730813605803,1.65397,2441.9,2441.6,0.28679]
[1730813606514,1.3672,2441.9,2441.6,0.28679]
[1730813606711,0.28677,2441.8,2441.6,0.28679]
[1730813606908,1.65397,2441.9,2441.7,0.28677]
[1730813607213,0.28677,2441.8,2441.6,0.28679]
[1730813607414,5.33313336,2441.7,2441.4,3.6736]
[1730813607717,5.33313336,2441.7,2441.6,0.28679]
[1730813608103,5.33313336,2441.7,2441.6,2.84475791]
[1730813608411,0.4582,2441.9,2441.8,0.28677]
[1730813610309,3.18811623,2442.0,2441.9,0.28676]
[1730813611113,3.18811623,2442.0,2441.8,0.4497]
[1730813611311,3.18811623,2442.0,2441.9,0.28676]
[1730813611518,3.18811623,2442.0,2441.8,0.73646]
[1730813611915,3.18811623,2442.0,2441.9,0.28676]
[1730813612516,0.434,2442.1,2441.9,0.28676]
[1730813613528,0.72074,2442.1,2441.9,0.28676]
[1730813613818,0.434,2442.1,2442.0,0.28675]
[1730813614021,2.89304912,2442.1,2442.0,0.28675]
[1730813614425,0.434,2442.1,2442.0,0.28675]
[1730813614724,2.89304187,2442.1,2442.0,0.28675]
[1730813615609,2.45904187,2442.1,2442.0,0.28675]
[1730813615917,0.8889,2442.2,2441.8,0.8949]
[1730813616114,1.59162733,2441.9,2441.8,1.18167]
[1730813616615,2.12215271,2442.1,2441.8,0.4497]
[1730813616825,2.40890271,2442.0,2441.8,0.73646]
[1730813617011,2.12215271,2442.0,2441.8,0.73646]
[1730813617408,2.12215271,2441.9,2441.7,3.2078]
[1730813617617,0.466,2441.8,2441.7,3.2078]
[1730813617818,1.17497,2441.8,2441.7,3.2078]
[1730813618021,1.17497,2441.8,2441.7,1.77309063]
[1730813618218,0.8882,2441.8,2441.5,0.2868]
[1730813618415,2.86866576,2441.7,2441.5,0.2868]
[1730813618619,2.12157576,2441.6,2441.3,0.27512493]
[1730813618817,2.12157576,2441.6,2441.3,0.28682]
[1730813618818,1.59114041,2441.4,2441.3,0.28682]
[1730813619017,2.12157576,2441.5,2441.4,0.28681]
[1730813619317,2.12157576,2441.5,2441.2,3.661]
[1730813619520,0.4222,2441.4,2441.2,3.661]
[1730813619823,0.444,2441.3,2441.2,3.94784]
[1730813621720,2.12157576,2441.4,2441.3,0.28683]
[1730813625614,0.7308,2441.6,2441.2,0.4532]
[1730813625821,2.12247563,2441.3,2441.2,0.74004]
[1730813626732,2.12247563,2441.3,2441.2,0.4532]
[1730813626920,0.444,2441.6,2441.1,3.2078]
[1730813627132,2.57443808,2441.2,2441.1,3.2078]
[1730813627331,2.85795961,2441.2,2440.7,0.26844246]
[1730813627626,2.85795961,2441.2,2440.7,0.7441]
[1730813627627,1.59197655,2440.8,2440.7,0.7441]
[1730813627828,2.12218339,2440.9,2440.8,0.28689]
[1730813628424,2.32719949,2440.9,2440.8,0.28689]
[1730813628933,2.12218339,2440.9,2440.8,0.28689]
[1730813629527,0.2050161,2440.9,2440.8,0.75289]
[1730813629727,2.65339563,2441.0,2440.9,0.28687]
[1730813629923,2.61427314,2441.0,2440.9,0.28687]
[1730813630125,2.61427314,2441.0,2440.9,10.14943791]
[1730813630322,2.61427314,2441.0,2440.9,7.59147]
[1730813630323,2.33045612,2441.0,2440.9,7.59147]
[1730813630528,2.65339563,2441.1,2441.0,0.28686]
[1730813631040,2.65339563,2441.1,2441.0,4.38366]
[1730813631234,2.65339563,2441.1,2441.0,0.28686]
[1730813631537,2.65339563,2441.1,2441.0,4.38366]
[1730813631538,2.61555576,2441.1,2441.0,4.38366]
[1730813631737,2.65888168,2441.1,2441.0,4.38366]
[1730813632131,0.20499585,2441.1,2441.0,4.38366]
[1730813632330,2.65888168,2441.2,2441.1,0.28685]
[1730813632532,5.27551883,2441.2,2441.1,0.73985]
[1730813632735,2.65888168,2441.2,2441.1,0.73985]
[1730813639348,2.65888168,2441.2,2441.1,4.83665]
[1730813640648,2.65888168,2441.2,2441.1,0.73985]
[1730813640848,5.26792471,2441.2,2441.1,4.83665]
[1730813641043,2.65888168,2441.2,2441.1,4.83665]
[1730813641552,2.60904303,2441.2,2441.1,0.73985]
[1730813641848,0.4638,2441.4,2441.1,0.453]
[1730813642054,2.6094254,2441.3,2441.2,0.28684]
[1730813645155,2.61083332,2441.3,2441.2,4.66081215]
[1730813645557,1.47913332,2441.3,2441.2,4.89078291]
[1730813645745,0.00283332,2441.3,2441.2,7.44875082]
[1730813645948,2.66487023,2441.3,2441.2,7.44875082]
[1730813646553,3.18811623,2441.6,2441.5,0.2868]
[1730813646855,7.50409601,2441.7,2441.6,0.28679]
[1730813647053,7.5041,2441.7,2441.4,3.2078]
[1730813647253,3.19939142,2441.5,2441.4,3.49462]
[1730813647453,7.01783472,2441.5,2441.4,3.49462]
[1730813648056,7.01783472,2441.5,2441.4,2.05987734]
[1730813648257,7.01783472,2441.5,2441.4,0.28682]
[1730813649957,7.01783472,2441.5,2441.4,0.51712128]
[1730813650455,6.9948011,2441.5,2441.4,0.51712128]
[1730813650657,1.83343234,2441.5,2441.4,0.51712128]
[1730813650853,3.6856567,2441.7,2441.4,0.23030128]
[1730813651049,3.6856567,2441.7,2441.6,0.28679]
[1730813651257,7.46300148,2441.7,2441.6,0.28679]
[1730813651464,7.46300148,2441.7,2441.3,3.6499]
[1730813651656,7.46300148,2441.7,2441.5,0.2868]
[1730813651657,7.74979148,2441.7,2441.5,0.2868]
[1730813651954,3.77734478,2441.6,2441.5,0.2868]
[1730813652665,1.3286,2441.8,2441.7,0.28678]
[1730813652864,5.10498567,2441.8,2441.7,0.28678]
[1730813653062,4.65008567,2441.8,2441.7,0.28678]
[1730813653268,2.87677313,2441.8,2441.7,4.61008752]
[1730813653558,0.4604,2442.0,2441.9,0.28676]
[1730813655757,2.81331135,2442.0,2441.9,0.28676]
[1730813656660,1.75813139,2442.0,2441.9,4.38196]
[1730813656964,1.75813139,2442.0,2441.9,4.6099803]
[1730813657168,3.2078,2442.2,2442.1,0.28673]
[1730813657763,0.4681,2442.4,2442.1,6.65236791]
[1730813658065,3.6856567,2442.6,2442.5,0.28669]
[1730813658359,3.75721142,2442.6,2442.5,0.28668]
[1730813658766,1.3463,2442.7,2442.5,0.28668]
[1730813659358,1.3463,2442.7,2442.3,0.4276]
[1730813659572,1.3463,2442.7,2442.6,0.28668]
[1730813659865,5.09987966,2442.7,2442.6,0.28668]
[1730813661167,5.09987966,2442.7,2442.5,0.28668]
[1730813661367,1.3463,2442.7,2442.4,0.4267]
[1730813661670,1.3463,2442.7,2442.6,0.28668]
[1730813662065,1.3463,2442.7,2442.5,0.28668]
[1730813662565,1.3463,2442.7,2442.6,0.28668]
[1730813665364,1.3463,2442.7,2442.5,0.28668]
[1730813665568,1.3463,2442.7,2442.6,0.28668]
[1730813665871,1.55118353,2442.7,2442.6,0.28668]
[1730813666770,1.3463,2442.7,2442.6,0.28668]
[1730813666969,3.86230644,2442.7,2442.6,0.28668]
[1730813667471,2.51600644,2442.7,2442.6,0.28668]
[1730813667666,2.51600644,2442.7,2442.4,1.14344]
[1730813667667,2.65935454,2442.7,2442.4,1.14344]
[1730813667870,2.86422384,2442.7,2442.6,3.49448]
[1730813668066,0.2048693,2442.7,2442.6,3.49448]
[1730813668367,0.2048693,2442.7,2442.6,10.14604791]
[1730813668572,1.59517226,2442.7,2442.6,10.14604791]
[1730813668869,0.2048693,2442.7,2442.6,10.14604791]
[1730813669072,3.98545454,2443.0,2442.8,0.28665]
[1730813669279,0.20485363,2442.9,2442.8,2.84461791]
[1730813669568,2.65935454,2443.2,2443.1,0.28662]
[1730813669765,2.50607059,2443.2,2442.9,3.6516]
[1730813669971,2.50607059,2443.2,2443.1,0.28662]
[1730813670369,2.65935454,2443.4,2443.3,0.28659]
[1730813670669,0.4394,2443.5,2443.4,0.28658]
[1730813670873,2.65935454,2443.6,2443.4,0.28658]
[1730813671067,2.65935454,2443.6,2443.5,0.28657]
[1730813671467,3.08825454,2443.7,2443.6,0.28656]
[1730813671668,3.2078,2443.9,2443.8,0.28653]
[1730813671869,3.2078,2443.9,2443.5,5.76576791]
[1730813672172,3.2078,2443.9,2443.7,0.28654]
[1730813672362,3.2078,2443.9,2443.8,0.28653]
[1730813673074,3.2078,2443.9,2443.5,5.76576791]
[1730813673366,1.06161139,2443.6,2443.5,6.05233791]
[1730813673669,1.06161139,2443.6,2443.5,3.49437]
[1730813673872,1.06161139,2443.6,2443.5,7.58717]
[1730813674472,1.06161139,2443.7,2443.6,0.28656]
[1730813674864,1.06161139,2443.7,2443.6,4.37856]
[1730813675666,1.06161139,2443.7,2443.6,0.28656]
[1730813676470,1.06161139,2443.8,2443.6,4.092]
[1730813676667,1.06161139,2443.8,2443.7,0.28655]
[1730813677468,1.06161139,2443.8,2443.5,6.03607171]
[1730813677774,1.06161139,2443.8,2443.7,0.28655]
[1730813678074,1.06161139,2443.8,2443.5,2.82827171]
[1730813678261,1.06161139,2443.8,2443.7,0.28655]
[1730813679174,0.32027824,2444.0,2443.9,0.28652]
[1730813679471,0.4565,2444.3,2443.9,7.2998]
[1730813679670,1.59241709,2444.4,2444.2,5.76576791]
[1730813679869,0.4599,2444.5,2444.4,0.28646]
[1730813681370,0.8926,2444.6,2444.5,0.28645]
[1730813682869,0.8926,2444.6,2444.4,0.28646]
[1730813683069,0.8926,2444.6,2444.3,0.448]
[1730813683469,0.8926,2444.6,2444.4,0.28646]
[1730813683971,0.8926,2444.6,2444.3,0.73447]
[1730813684165,0.28646,2444.5,2444.2,6.05224791]
[1730813684371,0.8926,2444.6,2444.2,3.2078]
[1730813684573,0.8926,2444.6,2444.3,0.28647]
[1730813684775,0.8926,2444.6,2444.4,0.28646]
[1730813684976,0.8926,2444.6,2444.2,3.2078]
[1730813685180,0.8926,2444.6,2444.4,0.28646]
[1730813685474,0.8926,2444.6,2444.2,3.47731161]
[1730813685776,0.28646,2444.5,2444.2,3.76379161]
[1730813686173,0.8926,2444.6,2444.5,0.28645]
[1730813686574,0.8926,2444.6,2444.4,0.28646]
[1730813688279,0.8926,2444.6,2444.2,6.03527952]
[1730813688469,1.17904,2444.6,2444.2,3.2078]
[1730813688675,0.28647,2444.4,2444.2,3.2078]
[1730813689072,0.8926,2444.6,2444.2,3.2078]
[1730813689276,41.08646,2444.5,2444.2,3.49429]
[1730813689877,41.08646,2444.5,2444.3,3.2078]
[1730813690187,40.8,2444.5,2444.3,3.2078]
[1730813690385,41.08646,2444.5,2444.3,3.2078]
[1730813690782,40.8,2444.5,2444.3,3.49427]
[1730813690980,0.8926,2444.6,2444.4,0.28646]
[1730813691877,0.8926,2444.6,2444.3,3.2078]
[1730813692074,1.17905,2444.6,2444.3,3.49427]
[1730813692678,1.17905,2444.6,2444.4,0.28646]
[1730813693281,1.17905,2444.6,2444.3,3.2078]
[1730813693282,1.17905,2444.6,2444.3,3.49427]
[1730813693977,1.17905,2444.6,2444.3,0.28647]
[1730813694186,1.17905,2444.6,2444.3,3.49427]
[1730813694881,1.17905,2444.6,2444.4,0.28646]
[1730813695485,1.17904,2444.6,2444.3,3.49427]
[1730813695684,1.17904,2444.6,2444.3,3.2078]
[1730813695991,1.17904,2444.6,2444.3,3.49427]
[1730813696186,1.17904,2444.6,2444.3,0.28647]
[1730813696487,2.77145709,2444.6,2444.3,3.49427]
[1730813696889,0.28645,2444.5,2444.3,3.2078]
[1730813697091,2.48501709,2444.6,2444.3,3.2078]
[1730813697092,0.28646,2444.4,2444.3,3.2078]
[1730813697793,1.59241709,2444.5,2444.3,3.2078]
[1730813697794,1.87887709,2444.5,2444.3,3.2078]
[1730813698088,1.87887709,2444.5,2444.2,0.28648]
[1730813698287,1.87887709,2444.5,2444.1,0.4518]
[1730813698288,1.87887709,2444.5,2444.3,3.49428]
[1730813698485,1.87887709,2444.5,2444.3,3.2078]
[1730813698886,1.87887709,2444.5,2444.3,3.49427]
[1730813699292,1.59241709,2444.5,2444.3,3.2078]
[1730813699588,1.87886709,2444.5,2444.3,3.49427]
[1730813699985,1.59241709,2444.5,2444.3,3.49427]
[1730813700382,1.59241709,2444.4,2444.3,3.49427]
[1730813700788,1.59241709,2444.4,2444.3,3.2078]
[1730813700990,0.20472613,2444.4,2444.3,3.2078]
[1730813701194,0.49118613,2444.4,2444.3,3.2078]
[1730813701987,7.12925912,2444.4,2443.8,3.2078]
[1730813702188,1.58983752,2444.0,2443.8,3.2078]
[1730813702386,3.42118365,2443.9,2443.8,3.2078]
[1730813702897,1.83134613,2443.9,2443.8,3.2078]
[1730813703119,3.94849912,2443.9,2443.8,3.2078]
[1730813703285,3.66197912,2443.9,2443.8,3.2078]
[1730813703684,1.54482613,2443.9,2443.8,3.49433]
[1730813705291,1.54482613,2443.9,2443.8,3.2078]
[1730813705493,2.32187912,2443.9,2443.8,3.2078]
[1730813705795,0.20472613,2443.9,2443.8,3.49433]
[1730813705990,1.79712546,2443.9,2443.8,3.49433]
[1730813706184,1.59239933,2443.9,2443.8,3.49433]
[1730813706399,2.32187912,2444.0,2443.8,3.2078]
[1730813706692,2.11715299,2444.0,2443.9,0.73462]
[1730813707484,1.60498,2444.3,2444.0,0.28651]
[1730813707485,2.65935454,2444.1,2444.0,0.28651]
[1730813707694,2.94586454,2444.1,2443.9,0.4481]
[1730813707899,9.22515445,2444.0,2443.8,3.2078]
[1730813708193,5.40760452,2443.9,2443.8,1.77438333]
[1730813708399,5.57268452,2443.9,2443.8,1.77438333]
[1730813708600,2.46172998,2443.9,2443.8,2.06091333]
[1730813708785,0.20476069,2443.9,2443.8,2.06091333]
[1730813708989,2.86411523,2444.0,2443.8,1.77438333]
[1730813709192,0.49128069,2443.9,2443.8,1.77438333]
[1730813709393,2.94587454,2443.9,2443.8,1.77438333]
[1730813709599,9.50053307,2443.9,2443.8,1.77438333]
[1730813709890,9.50053307,2443.9,2443.6,0.28655]
[1730813709891,0.28654,2443.8,2443.5,1.16636]
[1730813710097,2.12646905,2443.6,2443.5,1.16636]
[1730813710492,0.20476069,2443.6,2443.5,1.16636]
[1730813710700,5.12281379,2443.7,2443.6,0.28656]
[1730813710997,5.12303456,2443.7,2443.6,0.28656]
[1730813711299,2.46494824,2443.7,2443.6,0.28656]
[1730813711498,5.12303456,2443.7,2443.6,0.28656]
[1730813712100,5.12303456,2443.7,2443.5,3.43776791]
[1730813712396,1.3194,2443.8,2443.6,0.28656]
[1730813712700,2.4674529,2443.7,2443.5,3.43776791]
[1730813712900,5.13017101,2443.6,2443.5,3.72433791]
[1730813713100,5.13017101,2443.6,2443.5,3.95852787]
[1730813713503,2.66266167,2443.6,2443.5,3.95852787]
[1730813713701,2.6649948,2443.6,2443.5,3.95852787]
[1730813713898,5.13444063,2443.6,2443.5,3.95852787]
[1730813714101,2.6649948,2443.6,2443.5,3.95852787]
[1730813714301,2.6649948,2443.6,2443.5,3.72433791]
[1730813714499,2.46944583,2443.6,2443.5,3.95869068]
[1730813714700,0.20478437,2443.6,2443.5,0.23435277]
[1730813714900,0.49134437,2443.6,2443.2,3.2078]
[1730813715099,0.20478437,2443.5,2443.4,0.28658]
[1730813715298,5.13559521,2443.5,2443.4,7.97143677]
[1730813715496,3.19231675,2443.9,2443.4,9.01157027]
[1730813715694,3.19231675,2444.0,2443.7,2.55796791]
[1730813715899,6.82766251,2444.1,2444.0,0.28651]
[1730813716094,6.82766552,2444.1,2444.0,2.84447791]
[1730813716297,3.20090535,2444.3,2444.0,2.7925269]
[1730813716494,3.20219665,2444.3,2444.2,0.28649]
[1730813716792,6.7903925,2444.3,2444.2,0.23455899]
[1730813717099,6.7903925,2444.3,2444.2,0.52104899]
[1730813717800,3.20219665,2444.3,2444.2,3.0790169]
[1730813718402,3.20219665,2444.3,2444.2,3.07910103]
[1730813719904,6.79130642,2444.3,2444.2,3.07910103]
[1730813720400,3.20219665,2444.3,2444.2,3.07910103]
[1730813720608,3.6593,2444.6,2444.3,0.28648]
[1730813720609,3.20219665,2444.4,2444.3,0.28648]
[1730813720799,3.20219665,2444.4,2444.3,0.52113195]
[1730813721810,3.20219665,2444.5,2444.4,0.28646]
[1730813722003,6.7914631,2444.5,2444.4,3.07909625]
[1730813722304,6.40999665,2444.6,2444.5,0.28645]
[1730813722603,9.99943714,2444.6,2444.5,0.94681834]
[1730813722906,3.20219665,2444.7,2444.5,1.08496834]
[1730813723103,6.79178194,2444.7,2444.6,3.07907625]
[1730813723296,7.07821194,2444.7,2444.6,2.55796791]
[1730813723602,7.07821194,2444.7,2444.5,0.4246]
[1730813723603,6.7929003,2444.7,2444.5,0.4246]
[1730813723806,3.20331501,2444.7,2444.5,0.4246]
[1730813724005,3.20331501,2444.6,2444.5,0.71104]
[1730813724307,0.28645,2444.5,2444.2,2.84444791]
[1730813724599,0.28645,2444.5,2444.3,0.23467481]
[1730813724600,4.01747204,2444.4,2444.3,0.23467481]
[1730813724805,4.01747204,2444.4,2444.2,2.84444791]
[1730813725501,4.01747204,2444.4,2444.2,2.55796791]
[1730813725696,4.30394204,2444.4,2444.2,2.55796791]
[1730813725898,0.71507,2444.4,2444.2,2.55796791]
[1730813726706,2.52944219,2444.3,2444.2,2.55796791]
[1730813726906,2.24296219,2444.3,2444.2,2.79267554]
[1730813727306,2.52944219,2444.3,2444.2,2.79267554]
[1730813727500,5.73212521,2444.3,2444.2,2.79267554]
[1730813727806,5.44564521,2444.3,2444.2,2.79267554]
[1730813728507,3.20268302,2444.3,2444.2,2.79267554]
[1730813730207,0.71507,2444.4,2444.2,2.79267554]
[1730813730403,0.71507,2444.4,2444.2,2.55796791]
[1730813730905,0.71507,2444.4,2444.2,2.84445791]
[1730813732512,0.28648,2444.3,2444.2,2.55796791]
[1730813732817,0.28649,2444.2,2444.0,3.2078]
[1730813733117,0.4286,2444.4,2444.1,0.23479021]
[1730813733413,0.28648,2444.3,2444.2,0.23479021]
[1730813733711,0.4286,2444.4,2444.2,0.52127021]
[1730813734006,0.71506,2444.4,2444.0,3.2078]
[1730813734209,0.71506,2444.4,2444.1,0.52127532]
[1730813734409,0.71506,2444.4,2444.2,0.23478532]
[1730813734610,0.71506,2444.4,2444.2,0.28649]
[1730813734807,0.4286,2444.4,2444.2,0.28649]
[1730813736011,0.71506,2444.4,2444.2,0.28649]
[1730813736411,0.71506,2444.4,2444.0,3.2078]
[1730813736608,4.45254446,2444.4,2444.1,0.52128953]
[1730813736907,11.48513325,2444.3,2444.2,0.23479953]
[1730813737111,11.48513325,2444.3,2444.2,0.52128953]
[1730813737309,15.86281325,2444.3,2444.2,0.23479953]
[1730813737514,12.37278372,2444.3,2443.8,3.6574]
[1730813737704,9.24179368,2444.2,2443.9,3.16853038]
[1730813738008,5.44734676,2444.3,2444.1,2.55796791]
[1730813738212,2.4483244,2444.2,2444.1,1.83450503]
[1730813738406,2.4483244,2444.2,2444.1,5.93934452]
[1730813738606,2.87471265,2444.2,2444.1,10.56927493]
[1730813738808,5.11830093,2444.2,2444.1,10.56927493]
[1730813739108,5.11830093,2444.2,2444.1,11.07187267]
[1730813739411,5.11830093,2444.2,2444.1,10.56927493]
[1730813739607,5.11830093,2444.2,2444.1,10.56915223]
[1730813741014,5.11830093,2444.2,2444.1,6.98051777]
[1730813741414,5.11830093,2444.2,2444.1,6.47795223]
[1730813742414,2.4483244,2444.2,2444.1,5.93922182]
[1730813742610,2.4483244,2444.2,2444.1,0.61041679]
[1730813742913,2.4483244,2444.2,2444.1,0.23479016]
[1730813742914,3.40851448,2444.2,2444.1,0.23479016]
[1730813743212,0.49122612,2444.2,2443.9,2.84448791]
[1730813743417,4.31727165,2444.1,2444.0,0.23479482]
[1730813743619,10.13089346,2444.1,2444.0,0.52130482]
[1730813743910,3.3580244,2444.1,2444.0,0.23479482]
[1730813744115,6.56085993,2444.1,2444.0,0.23479482]
[1730813744313,14.22171494,2444.1,2443.4,4.99786791]
[1730813744521,14.22171494,2444.1,2443.5,1.93849996]
[1730813744522,2.66896713,2443.6,2443.5,1.93849996]
[1730813744713,4.91255541,2443.6,2443.5,4.49646787]
[1730813744913,2.87370325,2443.6,2443.5,8.08664206]
[1730813745221,2.66896713,2443.6,2443.5,3.99384206]
[1730813745426,2.66896713,2443.6,2443.5,1.14930415]
[1730813745628,2.43566584,2443.6,2443.5,0.89711257]
[1730813745916,2.88636584,2443.6,2443.5,0.89711257]
[1730813746113,2.88636584,2443.6,2443.5,0.61054257]
[1730813746415,2.88636584,2443.6,2443.5,0.23480166]
[1730813746416,4.14486483,2443.6,2443.5,0.23480166]
[1730813746618,6.37576137,2443.6,2443.5,0.23480166]
[1730813746814,4.14486483,2443.6,2443.3,0.28659]
[1730813747012,2.86326584,2443.5,2443.2,0.2866]
[1730813747212,2.43508037,2443.4,2443.3,3.45509299]
[1730813747721,2.66794827,2443.4,2443.3,3.45509299]
[1730813747916,2.43508037,2443.4,2443.3,3.45509299]
[1730813748118,2.23027436,2443.4,2443.3,3.45509299]
[1730813748315,2.43508037,2443.4,2443.3,3.45509299]
[1730813748517,2.43508037,2443.4,2443.3,3.0793566]
[1730813749416,2.23027436,2443.4,2443.3,3.0793566]
[1730813749615,2.43478145,2443.4,2443.3,2.7927666]
[1730813749815,9.73538145,2443.4,2442.6,5.76576791]
[1730813750115,2.13394333,2442.7,2442.6,3.94718]
[1730813750317,2.13394333,2442.7,2442.6,7.54086653]
[1730813750522,2.13394333,2442.7,2442.6,10.59874791]
[1730813750719,2.13394333,2442.7,2442.6,11.13175748]
[1730813751019,0.20479947,2442.7,2442.6,11.34735227]
[1730813751317,2.13394333,2442.8,2442.7,0.28666]
[1730813751623,2.13394333,2442.8,2442.7,4.38026]
[1730813751820,0.20483784,2442.8,2442.7,4.91304133]
[1730813752128,0.20483784,2442.8,2442.7,5.4151091]
[1730813752419,1.59927763,2442.8,2442.7,4.91304133]
[1730813752925,0.20483784,2442.8,2442.7,4.38026]
[1730813753218,2.33878117,2442.9,2442.7,4.0936]
[1730813753410,2.13394333,2443.0,2442.8,4.533]
[1730813753722,2.13394333,2443.0,2442.9,0.28664]
[1730813754218,2.13394333,2443.0,2442.9,4.38024]
[1730813755521,0.20482851,2443.0,2442.9,6.93820791]
[1730813755717,2.13394333,2443.1,2443.0,0.28663]
[1730813757015,0.20482369,2443.1,2443.0,4.38023]
[1730813757216,1.8025139,2443.1,2443.0,4.0936]
[1730813757524,1.59769021,2443.2,2443.1,0.28662]